Workbook

Sheet Senarai Barang Runcit
B2: Senarai Barang Runcit
D4: ITEM | E4: KEDAI | F4: KATEGORI | G4: KTT | H4: UNIT | I4: HARGA UNIT | J4: JUMLAH | K4: KOMEN
C5: ="c" -> c | D5: Oren | E5: Barang Runcit | F5: Hasil | G5: 2 | H5: lbs | I5: RM2.99 | J5: =IFERROR(List[KTT]*List[HARGA UNIT],"") -> RM5.98
C6: ="c" -> c | D6: Epal | E6: Dusun | F6: Hasil | G6: 3 | H6: lbs | I6: RM1.99 | J6: =IFERROR(List[KTT]*List[HARGA UNIT],"") -> RM5.97 | K6: Ada kupon
C7: ="c" -> c | D7: Pisang | E7: Barang Runcit | F7: Hasil | G7: 1 | H7: sikat | I7: RM3.99 | J7: =IFERROR(List[KTT]*List[HARGA UNIT],"") -> RM3.99
C8: c | D8: Salad | E8: Pasar | F8: Hasil | G8: 2 | H8: biji | I8: RM2.29 | J8: =IFERROR(List[KTT]*List[HARGA UNIT],"") -> RM4.58
C9: c | D9: Tomato | E9: Pasar | F9: Hasil | G9: 4 | H9: lbs | I9: RM3.49 | J9: =IFERROR(List[KTT]*List[HARGA UNIT],"") -> RM13.96
C10: c | D10: Labu | E10: Pasar | F10: Hasil | G10: 2 | H10: setiap | I10: RM1.50 | J10: =IFERROR(List[KTT]*List[HARGA UNIT],"") -> RM3.00
C11: c | D11: Saderi | E11: Barang Runcit | F11: Hasil | G11: 2 | H11: sikat | I11: RM1.99 | J11: =IFERROR(List[KTT]*List[HARGA UNIT],"") -> RM3.98
C12: c | D12: Timun | E12: Pasar | F12: Hasil | G12: 1 | H12: lbs | I12: RM2.29 | J12: =IFERROR(List[KTT]*List[HARGA UNIT],"") -> RM2.29
C13: c | D13: Cendawan | E13: Barang Runcit | F13: Hasil | G13: 0.5 | H13: lbs | I13: RM2.25 | J13: =IFERROR(List[KTT]*List[HARGA UNIT],"") -> RM1.13 | K13: Portabella besar
C14: c | D14: Susu | E14: Hantar ke Rumah | F14: Tenusu | G14: 2 | H14: gal | I14: RM3.99 | J14: =IFERROR(List[KTT]*List[HARGA UNIT],"") -> RM7.98
C15: c | D15: Keju | E15: Hantar ke Rumah | F15: Tenusu | G15: 1 | H15: lbs | I15: RM9.99 | J15: =IFERROR(List[KTT]*List[HARGA UNIT],"") -> RM9.99 | K15: Pelbagai keju blok
C16: c | D16: Telur | E16: Hantar ke Rumah | F16: Tenusu | G16: 2 | H16: doz | I16: RM3.50 | J16: =IFERROR(List[KTT]*List[HARGA UNIT],"") -> RM7.00
C17: c | D17: Keju kotej | E17: Hantar ke Rumah | F17: Tenusu | G17: 1 | H17: 453.59 g | I17: RM3.89 | J17: =IFERROR(List[KTT]*List[HARGA UNIT],"") -> RM3.89
C18: c | D18: Krim masam | E18: Hantar ke Rumah | F18: Tenusu | G18: 1 | H18: 226.80 g | I18: RM2.99 | J18: =IFERROR(List[KTT]*List[HARGA UNIT],"") -> RM2.99
C19: c | D19: Yogurt | E19: Barang Runcit | F19: Tenusu | G19: 1 | H19: 453.59 g | I19: RM4.99 | J19: =IFERROR(List[KTT]*List[HARGA UNIT],"") -> RM4.99 | K19: Greek dengan madu
C20: c | D20: Daging Lembu | E20: Pasar | F20: Daging | G20: 10 | H20: lbs | I20: RM7.99 | J20: =IFERROR(List[KTT]*List[HARGA UNIT],"") -> RM79.90 | K20: Filet dibalut bakon
C21: c | D21: Salmon | E21: Pasar Ikan | F21: Makanan Laut | G21: 6 | H21: lbs | I21: RM8.99 | J21: =IFERROR(List[KTT]*List[HARGA UNIT],"") -> RM53.94
C22: c | D22: Ketam Alaska | E22: Pasar Ikan | F22: Makanan Laut | G22: 5 | H22: lbs | I22: RM10.99 | J22: =IFERROR(List[KTT]*List[HARGA UNIT],"") -> RM54.95

Sheet pengiraan (hidden)
A1: *** Helaian perlu kekal tersembunyi ***
K3: =SUM(List[JUMLAH])-SUM(K6:K9) -> RM0 | L3: =ROUND(K3,0) -> RM0 | M3: JUMLAH LAIN
L4: =ROUNDUP(SUM(List[JUMLAH]),0) -> RM271 | M4: JUMLAH BARANG RUNCIT
E6: =IFERROR(INDEX(List[KATEGORI],MATCH(,COUNTIF($E$5:E5,List[KATEGORI]),)),"") -> Hasil | F6: =SUMIFS(List[JUMLAH],List[KATEGORI],E6) -> 44.875 | G6: =F6+ROW()/1000000 -> 44.875006 | H6: =LARGE($G$6:$G$21,1) -> 108.890009 | I6: =MATCH(H6,$G$6:$G$21,0) -> 4 | J6: =INDEX($E$6:$E$21,$I6) -> Makanan Laut | K6: =INDEX($F$6:$F$21,$I6) -> RM109 | L6: =ROUND(K6,0) -> RM109 | M6: ="JUMLAH " & UPPER(J6) -> JUMLAH MAKANAN LAUT
E7: =IFERROR(INDEX(List[KATEGORI],MATCH(,COUNTIF($E$5:E6,List[KATEGORI]),)),"") -> Tenusu | F7: =SUMIFS(List[JUMLAH],List[KATEGORI],E7) -> 36.84 | G7: =F7+ROW()/1000000 -> 36.840007 | H7: =LARGE($G$6:$G$21,2) -> 79.900008 | I7: =MATCH(H7,$G$6:$G$21,0) -> 3 | J7: =INDEX($E$6:$E$21,$I7) -> Daging | K7: =INDEX($F$6:$F$21,$I7) -> RM80 | L7: =ROUND(K7,0) -> RM80 | M7: ="JUMLAH " & UPPER(J7) -> JUMLAH DAGING
E8: =IFERROR(INDEX(List[KATEGORI],MATCH(,COUNTIF($E$5:E7,List[KATEGORI]),)),"") -> Daging | F8: =SUMIFS(List[JUMLAH],List[KATEGORI],E8) -> 79.9 | G8: 79.900008 | H8: =LARGE($G$6:$G$21,3) -> 44.875006 | I8: =MATCH(H8,$G$6:$G$21,0) -> 1 | J8: =INDEX($E$6:$E$21,$I8) -> Hasil | K8: =INDEX($F$6:$F$21,$I8) -> RM45 | L8: =ROUND(K8,0) -> RM45 | M8: JUMLAH HASIL
E9: =IFERROR(INDEX(List[KATEGORI],MATCH(,COUNTIF($E$5:E8,List[KATEGORI]),)),"") -> Makanan Laut | F9: =SUMIFS(List[JUMLAH],List[KATEGORI],E9) -> 108.89 | G9: 108.890009 | H9: =LARGE($G$6:$G$21,4) -> 36.840007 | I9: =MATCH(H9,$G$6:$G$21,0) -> 2 | J9: =INDEX($E$6:$E$21,$I9) -> Tenusu | K9: =INDEX($F$6:$F$21,$I9) -> RM37 | L9: =ROUND(K9,0) -> RM37 | M9: JUMLAH TENUSU
E10: =IFERROR(INDEX(List[KATEGORI],MATCH(,COUNTIF($E$5:E9,List[KATEGORI]),)),"") ->  | F10: =SUMIFS(List[JUMLAH],List[KATEGORI],E10) -> 0 | G10: 1e-05
E11: =IFERROR(INDEX(List[KATEGORI],MATCH(,COUNTIF($E$5:E10,List[KATEGORI]),)),"") ->  | F11: =SUMIFS(List[JUMLAH],List[KATEGORI],E11) -> 0 | G11: 1.1e-05
E12: =IFERROR(INDEX(List[KATEGORI],MATCH(,COUNTIF($E$5:E11,List[KATEGORI]),)),"") ->  | F12: =SUMIFS(List[JUMLAH],List[KATEGORI],E12) -> 0 | G12: 1.2e-05
E13: =IFERROR(INDEX(List[KATEGORI],MATCH(,COUNTIF($E$5:E12,List[KATEGORI]),)),"") ->  | F13: =SUMIFS(List[JUMLAH],List[KATEGORI],E13) -> 0 | G13: 1.3e-05
E14: =IFERROR(INDEX(List[KATEGORI],MATCH(,COUNTIF($E$5:E13,List[KATEGORI]),)),"") ->  | F14: =SUMIFS(List[JUMLAH],List[KATEGORI],E14) -> 0 | G14: 1.4e-05
E15: =IFERROR(INDEX(List[KATEGORI],MATCH(,COUNTIF($E$5:E14,List[KATEGORI]),)),"") ->  | F15: =SUMIFS(List[JUMLAH],List[KATEGORI],E15) -> 0 | G15: 1.5e-05
E16: =IFERROR(INDEX(List[KATEGORI],MATCH(,COUNTIF($E$5:E15,List[KATEGORI]),)),"") ->  | F16: =SUMIFS(List[JUMLAH],List[KATEGORI],E16) -> 0 | G16: 1.6e-05
E17: =IFERROR(INDEX(List[KATEGORI],MATCH(,COUNTIF($E$5:E16,List[KATEGORI]),)),"") ->  | F17: =SUMIFS(List[JUMLAH],List[KATEGORI],E17) -> 0 | G17: 1.7e-05
E18: =IFERROR(INDEX(List[KATEGORI],MATCH(,COUNTIF($E$5:E17,List[KATEGORI]),)),"") ->  | F18: =SUMIFS(List[JUMLAH],List[KATEGORI],E18) -> 0 | G18: 1.8e-05
E19: =IFERROR(INDEX(List[KATEGORI],MATCH(,COUNTIF($E$5:E18,List[KATEGORI]),)),"") ->  | F19: =SUMIFS(List[JUMLAH],List[KATEGORI],E19) -> 0 | G19: 1.9e-05
E20: =IFERROR(INDEX(List[KATEGORI],MATCH(,COUNTIF($E$5:E19,List[KATEGORI]),)),"") ->  | F20: =SUMIFS(List[JUMLAH],List[KATEGORI],E20) -> 0 | G20: 2e-05
E21: =IFERROR(INDEX(List[KATEGORI],MATCH(,COUNTIF($E$5:E20,List[KATEGORI]),)),"") ->  | F21: =SUMIFS(List[JUMLAH],List[KATEGORI],E21) -> 0 | G21: 2.1e-05
